[Event "Early-Titled-Tuesday-Blitz-September-26-2023"]
[Site "Chess.com"]
[Date "2023.09.26"]
[Round "2"]
[White "Witik"]
[Black "BigAl"]
[Result "1-0"]
[WhiteElo "2749"]
[BlackElo "2548"]
[TimeControl "180+1"]
[EndTime "8:18:00 PDT"]
[Termination "Witik won on time"]

1. e4 {[%clk 0:02:59.6]} 1... c6 {[%clk 0:02:59.9]} 2. d4 {[%clk 0:02:59]} 2...
d5 {[%clk 0:03:00.6]} 3. e5 {[%clk 0:02:57.1]} 3... Bf5 {[%clk 0:03:00.7]} 4. h4
{[%clk 0:02:56.9]} 4... c5 {[%clk 0:03:01]} 5. dxc5 {[%clk 0:02:51.3]} 5... Nc6
{[%clk 0:03:00.7]} 6. Bb5 {[%clk 0:02:44.1]} 6... Qc7 {[%clk 0:02:50.7]} 7. Nf3
{[%clk 0:02:26.1]} 7... Bg4 {[%clk 0:02:36]} 8. Qxd5 {[%clk 0:02:13.6]} 8... e6
{[%clk 0:02:24]} 9. Qe4 {[%clk 0:02:12.7]} 9... Bxf3 {[%clk 0:02:12.8]} 10. gxf3
{[%clk 0:02:10.4]} 10... Bxc5 {[%clk 0:02:12.1]} 11. Nc3 {[%clk 0:01:58.2]}
11... Ne7 {[%clk 0:02:09.5]} 12. Be3 {[%clk 0:01:43.3]} 12... Bxe3 {[%clk
0:01:54.2]} 13. fxe3 {[%clk 0:01:42.9]} 13... O-O-O {[%clk 0:01:53.8]} 14. f4
{[%clk 0:01:40.8]} 14... Nf5 {[%clk 0:01:38.1]} 15. Rg1 {[%clk 0:01:28.5]} 15...
Qb6 {[%clk 0:01:23.5]} 16. Bxc6 {[%clk 0:01:18.3]} 16... bxc6 {[%clk 0:01:12.2]}
17. Na4 {[%clk 0:00:53]} 17... Qxe3+ {[%clk 0:00:57.3]} 18. Qxe3 {[%clk
0:00:52.6]} 18... Nxe3 {[%clk 0:00:58.2]} 19. Ke2 {[%clk 0:00:50]} 19... Nxc2
{[%clk 0:00:56.2]} 20. Rac1 {[%clk 0:00:49]} 20... Nd4+ {[%clk 0:00:56.2]} 21.
Kf2 {[%clk 0:00:47.2]} 21... g6 {[%clk 0:00:51.5]} 22. Rc4 {[%clk 0:00:44.5]}
22... Rd5 {[%clk 0:00:34.3]} 23. Nc5 {[%clk 0:00:42.6]} 23... Nf5 {[%clk
0:00:25.2]} 24. Ne4 {[%clk 0:00:42.1]} 24... Kd7 {[%clk 0:00:22.1]} 25. Nf6+
{[%clk 0:00:35.6]} 25... Kc7 {[%clk 0:00:19.7]} 26. Nxd5+ {[%clk 0:00:36.5]}
26... exd5 {[%clk 0:00:20.2]} 27. Rc3 {[%clk 0:00:32.2]} 27... Kb6 {[%clk
0:00:19.9]} 28. Rgc1 {[%clk 0:00:29.7]} 28... Rc8 {[%clk 0:00:20.5]} 29. Rb3+
{[%clk 0:00:25.5]} 29... Kc7 {[%clk 0:00:20.2]} 30. h5 {[%clk 0:00:25.6]} 30...
gxh5 {[%clk 0:00:17.5]} 31. Rg1 {[%clk 0:00:25.9]} 31... c5 {[%clk 0:00:15.3]}
32. Rg5 {[%clk 0:00:24.9]} 32... Nd4 {[%clk 0:00:15.4]} 33. Rc3 {[%clk
0:00:25.2]} 33... Kd7 {[%clk 0:00:14.6]} 34. Rxh5 {[%clk 0:00:23.4]} 34... c4
{[%clk 0:00:13.2]} 35. Ra3 {[%clk 0:00:20.1]} 35... Nc6 {[%clk 0:00:13.2]} 36.
Rxh7 {[%clk 0:00:19.4]} 36... Ke6 {[%clk 0:00:13]} 37. Ra6 {[%clk 0:00:19.6]}
37... d4 {[%clk 0:00:10.7]} 38. Rh6+ {[%clk 0:00:18.4]} 38... Kd5 {[%clk
0:00:10.9]} 39. Rd6+ {[%clk 0:00:18.6]} 39... Kc5 {[%clk 0:00:11.6]} 40. a3
{[%clk 0:00:11.5]} 40... f5 {[%clk 0:00:07.8]} 41. Rf6 {[%clk 0:00:07.6]} 41...
d3 {[%clk 0:00:03.7]} 42. Ke3 {[%clk 0:00:07.8]} 1-0

[Event "Early-Titled-Tuesday-Blitz-September-26-2023"]
[Site "Chess.com"]
[Date "2023.09.26"]
[Round "2"]
[White "Er_is_geen_hoop_meer"]
[Black "SaqoChess_Twitch"]
[Result "1-0"]
[WhiteElo "2450"]
[BlackElo "2674"]
[TimeControl "180+1"]
[EndTime "8:18:00 PDT"]
[Termination "Er_is_geen_hoop_meer won by checkmate"]

1. g3 {[%clk 0:03:00]} 1... d5 {[%clk 0:02:59.9]} 2. Bg2 {[%clk 0:02:59.5]} 2...
e6 {[%clk 0:02:58.4]} 3. d3 {[%clk 0:02:59.1]} 3... Nf6 {[%clk 0:02:57.3]} 4.
Nd2 {[%clk 0:02:59.7]} 4... Be7 {[%clk 0:02:57.9]} 5. e4 {[%clk 0:02:59.5]} 5...
O-O {[%clk 0:02:58.6]} 6. Ne2 {[%clk 0:02:59.6]} 6... dxe4 {[%clk 0:02:58.9]} 7.
dxe4 {[%clk 0:02:59.9]} 7... e5 {[%clk 0:02:59.5]} 8. O-O {[%clk 0:03:00.2]}
8... Nc6 {[%clk 0:03:00.1]} 9. Nc4 {[%clk 0:03:00.1]} 9... Bg4 {[%clk
0:02:53.9]} 10. f3 {[%clk 0:02:57.8]} 10... Bc5+ {[%clk 0:02:46.7]} 11. Kh1
{[%clk 0:02:56.6]} 11... Qxd1 {[%clk 0:02:44.8]} 12. Rxd1 {[%clk 0:02:55.9]}
12... Be6 {[%clk 0:02:45.7]} 13. Ne3 {[%clk 0:02:55.2]} 13... Rfd8 {[%clk
0:02:44.2]} 14. c3 {[%clk 0:02:52.8]} 14... Bxe3 {[%clk 0:02:20.1]} 15. Rxd8+
{[%clk 0:02:48.8]} 15... Rxd8 {[%clk 0:02:17.7]} 16. Bxe3 {[%clk 0:02:49.4]}
16... Bc4 {[%clk 0:02:17.2]} 17. Bf1 {[%clk 0:02:46.1]} 17... Rd3 {[%clk
0:02:09.5]} 18. Ng1 {[%clk 0:02:28.7]} 18... Rxe3 {[%clk 0:01:46.1]} 19. Bxc4
{[%clk 0:02:23.6]} 19... Na5 {[%clk 0:01:36.1]} 20. Bf1 {[%clk 0:02:10]} 20...
Kf8 {[%clk 0:00:45.6]} 21. Kg2 {[%clk 0:02:08.9]} 21... Nxe4 {[%clk 0:00:43.6]}
22. fxe4 {[%clk 0:02:04.8]} 22... Rxe4 {[%clk 0:00:44.5]} 23. Rd1 {[%clk
0:02:02.4]} 23... Ke7 {[%clk 0:00:43]} 24. Be2 {[%clk 0:01:48.8]} 24... Ra4
{[%clk 0:00:40]} 25. a3 {[%clk 0:01:43.2]} 25... Nc4 {[%clk 0:00:38.7]} 26. Bxc4
{[%clk 0:01:31.5]} 26... Rxc4 {[%clk 0:00:38.3]} 27. Nf3 {[%clk 0:01:31.6]}
27... f6 {[%clk 0:00:38.3]} 28. Nd2 {[%clk 0:01:30.8]} 28... Rc6 {[%clk
0:00:37.2]} 29. Ne4 {[%clk 0:01:30.9]} 29... a5 {[%clk 0:00:37.3]} 30. g4 {[%clk
0:01:27.5]} 30... a4 {[%clk 0:00:35.9]} 31. Kf3 {[%clk 0:01:26.9]} 31... b5
{[%clk 0:00:31.9]} 32. Rd5 {[%clk 0:01:25.5]} 32... Rb6 {[%clk 0:00:30.6]} 33.
Rc5 {[%clk 0:01:11.5]} 33... c6 {[%clk 0:00:30.4]} 34. h4 {[%clk 0:01:08]} 34...
Kd7 {[%clk 0:00:29.6]} 35. Ke3 {[%clk 0:01:01.9]} 35... Rb8 {[%clk 0:00:29.5]}
36. Kd2 {[%clk 0:00:59.8]} 36... Kc7 {[%clk 0:00:27.4]} 37. Kc2 {[%clk
0:00:57.6]} 37... Kb6 {[%clk 0:00:26.5]} 38. c4 {[%clk 0:00:57.9]} 38... Rd8
{[%clk 0:00:21.6]} 39. cxb5 {[%clk 0:00:42]} 39... cxb5 {[%clk 0:00:22.5]} 40.
Rc3 {[%clk 0:00:41.1]} 40... Rd4 {[%clk 0:00:23]} 41. Re3 {[%clk 0:00:39.3]}
41... Kc6 {[%clk 0:00:22]} 42. h5 {[%clk 0:00:35.3]} 42... Kd5 {[%clk
0:00:20.5]} 43. Nc3+ {[%clk 0:00:34.8]} 43... Kc6 {[%clk 0:00:19.5]} 44. Re4
{[%clk 0:00:33.6]} 44... Rd7 {[%clk 0:00:19.5]} 45. g5 {[%clk 0:00:32.4]} 45...
Kc5 {[%clk 0:00:15.5]} 46. h6 {[%clk 0:00:31.9]} 46... fxg5 {[%clk 0:00:12.7]}
47. Rxe5+ {[%clk 0:00:31.6]} 47... Kc4 {[%clk 0:00:11.6]} 48. Rxg5 {[%clk
0:00:28.2]} 48... gxh6 {[%clk 0:00:11.8]} 49. Rxb5 {[%clk 0:00:28.1]} 49... Rg7
{[%clk 0:00:11.5]} 50. Rb4+ {[%clk 0:00:28]} 50... Kc5 {[%clk 0:00:11.7]} 51.
Rxa4 {[%clk 0:00:28.7]} 51... h5 {[%clk 0:00:12.1]} 52. Rh4 {[%clk 0:00:28.6]}
52... Rg5 {[%clk 0:00:12.3]} 53. Ne4+ {[%clk 0:00:29]} 53... Kb5 {[%clk
0:00:12.3]} 54. Nxg5 {[%clk 0:00:29.7]} 54... h6 {[%clk 0:00:12.1]} 55. Ne4
{[%clk 0:00:29.2]} 55... Ka4 {[%clk 0:00:11.4]} 56. Nc3+ {[%clk 0:00:28.3]}
56... Ka5 {[%clk 0:00:10.2]} 57. Rxh5+ {[%clk 0:00:28.7]} 57... Ka6 {[%clk
0:00:10.9]} 58. Rxh6+ {[%clk 0:00:28.4]} 58... Ka5 {[%clk 0:00:11.6]} 59. b4#
{[%clk 0:00:28.6]} 1-0

[Event "Early-Titled-Tuesday-Blitz-September-26-2023"]
[Site "Chess.com"]
[Date "2023.09.26"]
[Round "2"]
[White "chezzgirl04"]
[Black "HSH1987"]
[Result "1-0"]
[WhiteElo "2160"]
[BlackElo "2639"]
[TimeControl "180+1"]
[EndTime "8:18:01 PDT"]
[Termination "chezzgirl04 won on time"]

1. e4 {[%clk 0:01:49.8]} 1... d6 {[%clk 0:02:56.5]} 2. d4 {[%clk 0:01:48.9]}
2... Nf6 {[%clk 0:02:56.1]} 3. Bd3 {[%clk 0:01:47.2]} 3... g6 {[%clk 0:02:55.4]}
4. f4 {[%clk 0:01:46.7]} 4... Bg7 {[%clk 0:02:55.2]} 5. Nf3 {[%clk 0:01:46.8]}
5... O-O {[%clk 0:02:54.9]} 6. O-O {[%clk 0:01:47.1]} 6... c5 {[%clk 0:02:50.6]}
7. c3 {[%clk 0:01:46.5]} 7... cxd4 {[%clk 0:02:50.2]} 8. cxd4 {[%clk 0:01:46.5]}
8... d5 {[%clk 0:02:50.7]} 9. e5 {[%clk 0:01:46.1]} 9... Ne4 {[%clk 0:02:50.6]}
10. Nbd2 {[%clk 0:01:45.7]} 10... Bf5 {[%clk 0:02:41.1]} 11. Nh4 {[%clk
0:01:38.2]} 11... e6 {[%clk 0:02:32.9]} 12. Qe1 {[%clk 0:01:29]} 12... Nc6
{[%clk 0:02:27.8]} 13. Nb3 {[%clk 0:01:21.6]} 13... Qb6 {[%clk 0:02:20.6]} 14.
Be3 {[%clk 0:01:15.9]} 14... a5 {[%clk 0:02:20]} 15. Rb1 {[%clk 0:00:43.4]}
15... Nb4 {[%clk 0:01:54.1]} 16. Nxf5 {[%clk 0:00:35.3]} 16... gxf5 {[%clk
0:01:36.9]} 17. Bxe4 {[%clk 0:00:34.9]} 17... fxe4 {[%clk 0:01:27.8]} 18. f5
{[%clk 0:00:30.5]} 18... Nc2 {[%clk 0:01:10.2]} 19. Qg3 {[%clk 0:00:27.3]} 19...
exf5 {[%clk 0:01:03.4]} 20. Rxf5 {[%clk 0:00:26]} 20... h6 {[%clk 0:00:47.8]}
21. Rf6 {[%clk 0:00:24.1]} 21... Nxe3 {[%clk 0:00:18.7]} 22. Rxb6 {[%clk
0:00:21.7]} 22... Nf5 {[%clk 0:00:18.7]} 23. Qf4 {[%clk 0:00:20.4]} 23... Ne7
{[%clk 0:00:17.9]} 24. Rf1 {[%clk 0:00:17.8]} 24... a4 {[%clk 0:00:17]} 25. Nc5
{[%clk 0:00:17.7]} 25... Ng6 {[%clk 0:00:16.9]} 26. Qg4 {[%clk 0:00:16.6]} 26...
a3 {[%clk 0:00:12.8]} 27. Nd7 {[%clk 0:00:16.5]} 27... axb2 {[%clk 0:00:09.1]}
28. Rxb2 {[%clk 0:00:16.4]} 28... Rfc8 {[%clk 0:00:05.2]} 29. Rxb7 {[%clk
0:00:16]} 29... Rxa2 {[%clk 0:00:04.3]} 30. Nf6+ {[%clk 0:00:15.2]} 30... Bxf6
{[%clk 0:00:04.1]} 31. exf6 {[%clk 0:00:15.5]} 31... Rcc2 {[%clk 0:00:03.5]} 32.
Rb8+ {[%clk 0:00:13.8]} 32... Kh7 {[%clk 0:00:03.7]} 33. Rf8 {[%clk 0:00:13.3]}
33... Rxg2+ {[%clk 0:00:02.9]} 34. Qxg2 {[%clk 0:00:13]} 34... Rxg2+ {[%clk
0:00:03.8]} 35. Kxg2 {[%clk 0:00:13.1]} 35... Nh4+ {[%clk 0:00:04.2]} 36. Kh3
{[%clk 0:00:13.2]} 36... Nf3 {[%clk 0:00:05.1]} 37. Rxf7+ {[%clk 0:00:11.7]}
37... Kg6 {[%clk 0:00:05.4]} 38. Rf8 {[%clk 0:00:11.4]} 38... Nxd4 {[%clk
0:00:04.6]} 39. Rg1+ {[%clk 0:00:10.4]} 39... Kf5 {[%clk 0:00:04]} 40. f7 {[%clk
0:00:09.7]} 40... Ne6 {[%clk 0:00:03.4]} 41. Re8 {[%clk 0:00:08.3]} 41... Nf4+
{[%clk 0:00:03.5]} 42. Kh4 {[%clk 0:00:08.2]} 1-0

[Event "Early-Titled-Tuesday-Blitz-September-26-2023"]
[Site "Chess.com"]
[Date "2023.09.26"]
[Round "2"]
[White "Lennis93"]
[Black "Kleyton_Lima"]
[Result "1/2-1/2"]
[WhiteElo "2728"]
[BlackElo "2546"]
[TimeControl "180+1"]
[EndTime "8:18:03 PDT"]
[Termination "Game drawn by repetition"]

1. b3 {[%clk 0:03:00.9]} 1... Nf6 {[%clk 0:02:55.6]} 2. Bb2 {[%clk 0:03:01.2]}
2... g6 {[%clk 0:02:55.7]} 3. Bxf6 {[%clk 0:03:01.1]} 3... exf6 {[%clk
0:02:56.6]} 4. c4 {[%clk 0:03:01.6]} 4... d5 {[%clk 0:02:56.3]} 5. cxd5 {[%clk
0:03:00.8]} 5... Qxd5 {[%clk 0:02:57.2]} 6. Nc3 {[%clk 0:03:01.1]} 6... Qa5
{[%clk 0:02:57.7]} 7. e3 {[%clk 0:03:01]} 7... Ba3 {[%clk 0:02:57.2]} 8. Nge2
{[%clk 0:03:00.2]} 8... O-O {[%clk 0:02:55.3]} 9. g3 {[%clk 0:02:57]} 9... Bg4
{[%clk 0:02:46.1]} 10. Bg2 {[%clk 0:02:55.7]} 10... Bb2 {[%clk 0:02:42.4]} 11.
Rb1 {[%clk 0:02:55.4]} 11... Bxe2 {[%clk 0:02:40.8]} 12. Nxe2 {[%clk 0:02:51.4]}
12... Ba3 {[%clk 0:02:06.1]} 13. Bxb7 {[%clk 0:02:50.2]} 13... Nd7 {[%clk
0:02:00.4]} 14. Bxa8 {[%clk 0:02:50.3]} 14... Rxa8 {[%clk 0:02:01.3]} 15. O-O
{[%clk 0:02:50.1]} 15... Bb4 {[%clk 0:01:49.9]} 16. Qc2 {[%clk 0:02:45]} 16...
Bxd2 {[%clk 0:01:46.1]} 17. b4 {[%clk 0:02:12.5]} 17... Bxb4 {[%clk 0:01:40.2]}
18. Qc6 {[%clk 0:01:45.6]} 18... Rd8 {[%clk 0:01:34]} 19. Rxb4 {[%clk
0:01:43.4]} 19... Qxb4 {[%clk 0:01:33.8]} 20. Qxc7 {[%clk 0:01:23.3]} 20... Qb6
{[%clk 0:01:31.2]} 21. Rc1 {[%clk 0:01:18.6]} 21... Ne5 {[%clk 0:01:22.3]} 22.
Qxb6 {[%clk 0:01:14.4]} 22... axb6 {[%clk 0:01:23.2]} 23. Nd4 {[%clk 0:01:14.9]}
23... Ra8 {[%clk 0:01:20.3]} 24. Rc2 {[%clk 0:01:15.1]} 24... Kg7 {[%clk
0:01:17.9]} 25. h3 {[%clk 0:01:14.8]} 25... h5 {[%clk 0:01:16.2]} 26. Kf1 {[%clk
0:01:06.5]} 26... Ra3 {[%clk 0:01:14]} 27. Ke2 {[%clk 0:01:06.6]} 27... Nd7
{[%clk 0:01:10.7]} 28. Nb5 {[%clk 0:01:03.4]} 28... Ra5 {[%clk 0:01:08.1]} 29.
Nd6 {[%clk 0:01:01.6]} 29... Nc5 {[%clk 0:01:05.8]} 30. Kf3 {[%clk 0:01:01.6]}
30... f5 {[%clk 0:01:04.5]} 31. Nc4 {[%clk 0:00:59.2]} 31... Rb5 {[%clk
0:01:03.1]} 32. Nxb6 {[%clk 0:00:58.8]} 32... Rxb6 {[%clk 0:01:00.9]} 33. Rxc5
{[%clk 0:00:58.6]} 33... Ra6 {[%clk 0:01:00.5]} 34. Rc2 {[%clk 0:00:56.6]} 34...
Ra3 {[%clk 0:01:01.2]} 35. Rb2 {[%clk 0:00:49.2]} 35... Kf6 {[%clk 0:00:59.1]}
36. Kf4 {[%clk 0:00:48.1]} 36... Ra4+ {[%clk 0:00:58.9]} 37. Kf3 {[%clk
0:00:48.3]} 37... Ra3 {[%clk 0:00:59.8]} 38. Ke2 {[%clk 0:00:40.6]} 38... Ra6
{[%clk 0:00:56]} 39. h4 {[%clk 0:00:38.9]} 39... g5 {[%clk 0:00:50.1]} 40. hxg5+
{[%clk 0:00:37.9]} 40... Kxg5 {[%clk 0:00:50.2]} 41. Kf3 {[%clk 0:00:38.3]}
41... Ra4 {[%clk 0:00:45.4]} 42. Rb7 {[%clk 0:00:35.2]} 42... Kg6 {[%clk
0:00:44.3]} 43. Rb6+ {[%clk 0:00:35.6]} 43... Kg5 {[%clk 0:00:43]} 44. Rb5
{[%clk 0:00:27.4]} 44... Rxa2 {[%clk 0:00:41.1]} 45. e4 {[%clk 0:00:26.9]} 45...
Ra3+ {[%clk 0:00:41.1]} 46. Kg2 {[%clk 0:00:26.4]} 46... Ra4 {[%clk 0:00:34.4]}
47. Rxf5+ {[%clk 0:00:26.6]} 47... Kg6 {[%clk 0:00:34.5]} 48. f3 {[%clk
0:00:27]} 48... Ra1 {[%clk 0:00:33.8]} 49. Rb5 {[%clk 0:00:25.7]} 49... Rc1
{[%clk 0:00:33.7]} 50. Rb6+ {[%clk 0:00:25.4]} 50... Kg7 {[%clk 0:00:33.7]} 51.
f4 {[%clk 0:00:22.3]} 51... Re1 {[%clk 0:00:32.7]} 52. e5 {[%clk 0:00:22.6]}
52... Ra1 {[%clk 0:00:31.2]} 53. Rf6 {[%clk 0:00:22.2]} 53... Rb1 {[%clk
0:00:29.2]} 54. Rf5 {[%clk 0:00:22.6]} 54... Kg6 {[%clk 0:00:28.9]} 55. Rg5+
{[%clk 0:00:22.9]} 55... Kh6 {[%clk 0:00:29.5]} 56. Rg8 {[%clk 0:00:21.2]} 56...
Ra1 {[%clk 0:00:28]} 57. Kf3 {[%clk 0:00:20.9]} 57... Ra4 {[%clk 0:00:27]} 58.
Kg2 {[%clk 0:00:19.6]} 58... Ra1 {[%clk 0:00:26.7]} 59. Kh3 {[%clk 0:00:19.6]}
59... Rh1+ {[%clk 0:00:25.1]} 60. Kg2 {[%clk 0:00:20.1]} 60... Ra1 {[%clk
0:00:26]} 1/2-1/2

[Event "Early-Titled-Tuesday-Blitz-September-26-2023"]
[Site "Chess.com"]
[Date "2023.09.26"]
[Round "2"]
[White "zajka-molotok"]
[Black "Roman_Ovetchkin"]
[Result "1-0"]
[WhiteElo "2545"]
[BlackElo "2701"]
[TimeControl "180+1"]
[EndTime "8:18:04 PDT"]
[Termination "zajka-molotok won on time"]

1. e4 {[%clk 0:03:00.7]} 1... c6 {[%clk 0:03:00.2]} 2. d4 {[%clk 0:03:00.6]}
2... d5 {[%clk 0:03:01.1]} 3. exd5 {[%clk 0:03:01.1]} 3... cxd5 {[%clk
0:03:01.1]} 4. Bd3 {[%clk 0:03:00.3]} 4... Nc6 {[%clk 0:03:00.4]} 5. c3 {[%clk
0:03:00.3]} 5... Qc7 {[%clk 0:02:59]} 6. h3 {[%clk 0:02:57]} 6... g6 {[%clk
0:02:54.9]} 7. Nf3 {[%clk 0:02:47.6]} 7... Bf5 {[%clk 0:02:53.2]} 8. Be2 {[%clk
0:02:44.5]} 8... Nf6 {[%clk 0:02:52.9]} 9. O-O {[%clk 0:02:44.1]} 9... Bg7
{[%clk 0:02:52.8]} 10. Re1 {[%clk 0:02:38.5]} 10... O-O {[%clk 0:02:52.3]} 11.
Bf1 {[%clk 0:02:27.8]} 11... Ne4 {[%clk 0:02:40.4]} 12. Nbd2 {[%clk 0:02:19]}
12... Rad8 {[%clk 0:02:38.4]} 13. g4 {[%clk 0:02:07.2]} 13... Nxd2 {[%clk
0:02:28.8]} 14. Bxd2 {[%clk 0:02:07.8]} 14... Bc8 {[%clk 0:02:28.8]} 15. Qc1
{[%clk 0:02:04.1]} 15... e5 {[%clk 0:02:13.9]} 16. dxe5 {[%clk 0:01:59.4]} 16...
Nxe5 {[%clk 0:02:13.2]} 17. Nxe5 {[%clk 0:01:58.8]} 17... Bxe5 {[%clk
0:02:12.6]} 18. Bg2 {[%clk 0:01:57.5]} 18... Rfe8 {[%clk 0:02:11.3]} 19. Bg5
{[%clk 0:01:55.2]} 19... f6 {[%clk 0:02:03]} 20. Be3 {[%clk 0:01:53.8]} 20... b6
{[%clk 0:01:58.2]} 21. Qd2 {[%clk 0:01:52.3]} 21... Be6 {[%clk 0:01:47.5]} 22.
Bd4 {[%clk 0:01:20.7]} 22... Bf7 {[%clk 0:01:40.1]} 23. Rad1 {[%clk 0:01:17.7]}
23... Qc4 {[%clk 0:01:05]} 24. a3 {[%clk 0:01:13.5]} 24... Bxd4 {[%clk
0:00:59.3]} 25. Rxe8+ {[%clk 0:01:06.3]} 25... Rxe8 {[%clk 0:00:56.8]} 26. Qxd4
{[%clk 0:01:07.2]} 26... Qxd4 {[%clk 0:00:55]} 27. Rxd4 {[%clk 0:01:07.3]} 27...
Re1+ {[%clk 0:00:45.8]} 28. Bf1 {[%clk 0:00:55.5]} 28... Rb1 {[%clk 0:00:43.7]}
29. b4 {[%clk 0:00:46.4]} 29... Rb3 {[%clk 0:00:38.8]} 30. c4 {[%clk 0:00:43.2]}
30... dxc4 {[%clk 0:00:35]} 31. Bxc4 {[%clk 0:00:44.1]} 31... Bxc4 {[%clk
0:00:34]} 32. Rxc4 {[%clk 0:00:45]} 32... Rxa3 {[%clk 0:00:31.2]} 33. Rc7 {[%clk
0:00:44]} 33... g5 {[%clk 0:00:30.3]} 34. Kg2 {[%clk 0:00:43]} 34... h6 {[%clk
0:00:29.3]} 35. Rb7 {[%clk 0:00:41.6]} 35... Kf8 {[%clk 0:00:25.1]} 36. f3
{[%clk 0:00:39.2]} 36... Ra2+ {[%clk 0:00:22]} 37. Kg3 {[%clk 0:00:38.4]} 37...
Ke8 {[%clk 0:00:19.9]} 38. h4 {[%clk 0:00:36.4]} 38... gxh4+ {[%clk 0:00:13.5]}
39. Kxh4 {[%clk 0:00:37.3]} 39... Ra3 {[%clk 0:00:13.8]} 40. f4 {[%clk 0:00:36]}
40... Ra4 {[%clk 0:00:13.8]} 41. f5 {[%clk 0:00:33.4]} 41... Rxb4 {[%clk
0:00:10.7]} 42. Rxa7 {[%clk 0:00:33.2]} 42... Rd4 {[%clk 0:00:07.6]} 43. Rb7
{[%clk 0:00:27.7]} 43... Rb4 {[%clk 0:00:05.6]} 44. Kh5 {[%clk 0:00:27.3]} 44...
Kf8 {[%clk 0:00:05.5]} 45. Kxh6 {[%clk 0:00:25.5]} 45... Rxg4 {[%clk 0:00:02.8]}
46. Rxb6 {[%clk 0:00:25.2]} 46... Kf7 {[%clk 0:00:01.4]} 47. Rb7+ {[%clk
0:00:23]} 47... Kf8 {[%clk 0:00:01.6]} 48. Rb6 {[%clk 0:00:20]} 1-0

[Event "Early-Titled-Tuesday-Blitz-September-26-2023"]
[Site "Chess.com"]
[Date "2023.09.26"]
[Round "2"]
[White "jaskol95"]
[Black "seopie"]
[Result "1/2-1/2"]
[WhiteElo "2610"]
[BlackElo "2834"]
[TimeControl "180+1"]
[EndTime "8:18:05 PDT"]
[Termination "Game drawn - insufficient material"]

1. d4 {[%clk 0:03:00.9]} 1... Nf6 {[%clk 0:03:00]} 2. Nc3 {[%clk 0:03:00.9]}
2... d5 {[%clk 0:02:59.8]} 3. Bf4 {[%clk 0:03:00.8]} 3... c5 {[%clk 0:02:56.9]}
4. e4 {[%clk 0:03:00.9]} 4... Nxe4 {[%clk 0:02:56.5]} 5. Nxe4 {[%clk 0:03:01.1]}
5... dxe4 {[%clk 0:02:56.9]} 6. dxc5 {[%clk 0:03:01.7]} 6... Qa5+ {[%clk
0:02:57]} 7. c3 {[%clk 0:03:02.2]} 7... Qxc5 {[%clk 0:02:56.8]} 8. Qa4+ {[%clk
0:02:59.3]} 8... Nc6 {[%clk 0:02:57.1]} 9. Qxe4 {[%clk 0:02:58.1]} 9... g6
{[%clk 0:02:57.4]} 10. Nf3 {[%clk 0:02:50.2]} 10... Bg7 {[%clk 0:02:56.9]} 11.
Rd1 {[%clk 0:02:50.8]} 11... O-O {[%clk 0:02:51]} 12. Be3 {[%clk 0:02:49]} 12...
Qf5 {[%clk 0:02:46.8]} 13. Qa4 {[%clk 0:02:39.5]} 13... Qg4 {[%clk 0:02:42.4]}
14. Qxg4 {[%clk 0:02:34.1]} 14... Bxg4 {[%clk 0:02:41.8]} 15. Be2 {[%clk
0:02:34.9]} 15... Rad8 {[%clk 0:02:40.9]} 16. O-O {[%clk 0:02:34.9]} 16... b6
{[%clk 0:02:36]} 17. h3 {[%clk 0:02:32.5]} 17... Bc8 {[%clk 0:02:35.8]} 18. Rxd8
{[%clk 0:02:25.6]} 18... Rxd8 {[%clk 0:02:35.6]} 19. Rd1 {[%clk 0:02:26.3]}
19... Rxd1+ {[%clk 0:02:35]} 20. Bxd1 {[%clk 0:02:27.2]} 20... Kf8 {[%clk
0:02:32.8]} 21. Kf1 {[%clk 0:02:26.4]} 21... Ke8 {[%clk 0:02:32.6]} 22. Ke1
{[%clk 0:02:26.2]} 22... Bd7 {[%clk 0:02:31.8]} 23. Kd2 {[%clk 0:02:26]} 23...
Na5 {[%clk 0:02:31.3]} 24. Be2 {[%clk 0:02:24.4]} 24... Be6 {[%clk 0:02:30.5]}
25. b3 {[%clk 0:02:20.2]} 25... Nc6 {[%clk 0:02:30.5]} 26. Bb5 {[%clk
0:02:16.6]} 26... Bd7 {[%clk 0:02:30.4]} 27. Bd3 {[%clk 0:01:57.9]} 27... Ne5
{[%clk 0:02:28.9]} 28. Nxe5 {[%clk 0:01:57.6]} 28... Bxe5 {[%clk 0:02:29.8]} 29.
h4 {[%clk 0:01:49]} 29... Bd6 {[%clk 0:02:26.1]} 30. g3 {[%clk 0:01:48.9]} 30...
f5 {[%clk 0:02:25.1]} 31. h5 {[%clk 0:01:29.6]} 31... e6 {[%clk 0:02:19]} 32.
Bg5 {[%clk 0:01:23.3]} 32... Kf7 {[%clk 0:02:18.1]} 33. Be2 {[%clk 0:01:21.1]}
33... e5 {[%clk 0:02:17.8]} 34. Bc4+ {[%clk 0:01:16.9]} 34... Be6 {[%clk
0:02:17.8]} 35. hxg6+ {[%clk 0:01:16]} 35... hxg6 {[%clk 0:02:17.6]} 36. Bxe6+
{[%clk 0:01:15.9]} 36... Kxe6 {[%clk 0:02:17.7]} 37. c4 {[%clk 0:00:59.9]} 37...
Bc5 {[%clk 0:02:14.1]} 38. f3 {[%clk 0:00:59.8]} 38... e4 {[%clk 0:02:10.3]} 39.
fxe4 {[%clk 0:00:56.3]} 39... fxe4 {[%clk 0:02:11.2]} 40. Be3 {[%clk 0:00:47.9]}
40... Kf5 {[%clk 0:01:59.9]} 41. Bxc5 {[%clk 0:00:21.1]} 41... bxc5 {[%clk
0:02:00.8]} 42. Ke3 {[%clk 0:00:19.9]} 42... a5 {[%clk 0:01:58.4]} 43. a3 {[%clk
0:00:20.4]} 43... g5 {[%clk 0:01:58.3]} 44. g4+ {[%clk 0:00:15.6]} 44... Kxg4
{[%clk 0:01:02.8]} 45. Kxe4 {[%clk 0:00:16.5]} 45... Kh4 {[%clk 0:00:50.4]} 46.
b4 {[%clk 0:00:16.7]} 46... cxb4 {[%clk 0:00:48.9]} 47. axb4 {[%clk 0:00:16.3]}
47... axb4 {[%clk 0:00:15]} 48. c5 {[%clk 0:00:16.1]} 48... b3 {[%clk
0:00:15.3]} 49. Kd3 {[%clk 0:00:16.2]} 49... b2 {[%clk 0:00:15.4]} 50. Kc2
{[%clk 0:00:16.2]} 50... g4 {[%clk 0:00:15.9]} 51. c6 {[%clk 0:00:16.8]} 51...
g3 {[%clk 0:00:16.3]} 52. c7 {[%clk 0:00:17.1]} 52... g2 {[%clk 0:00:16.6]} 53.
c8=Q {[%clk 0:00:16.3]} 53... g1=Q {[%clk 0:00:15.3]} 54. Qh8+ {[%clk
0:00:15.6]} 54... Kg3 {[%clk 0:00:15.7]} 55. Qg7+ {[%clk 0:00:16]} 55... Kf2
{[%clk 0:00:16]} 56. Qxg1+ {[%clk 0:00:16.4]} 56... Kxg1 {[%clk 0:00:16.9]} 57.
Kxb2 {[%clk 0:00:17]} 1/2-1/2